fUSD/lending_fUSD_20260417
["ID","MTS","AMOUNT","RATE_DAILY","PERIOD"]
[420649310,1776424965972,-1000.0,8.338e-05,2]
[420649311,1776424966214,-1000.0,8.338e-05,2]
[420649312,1776424966627,-1000.0,8.338e-05,2]
[420649313,1776424966676,-1000.0,8.338e-05,2]
[420649314,1776424967167,-1000.0,8.338e-05,2]
[420649315,1776424967260,-1000.0,8.338e-05,2]
[420649316,1776424967702,-1000.0,8.338e-05,2]
[420649317,1776424968800,-1000.0,8.338e-05,2]
[420649318,1776424971421,-1000.0,8.338e-05,2]
[420649319,1776424973812,-1000.0,8.338e-05,2]
[420649320,1776424978673,-946.0,8.338e-05,2]
[420649321,1776424989330,166.92,8.214e-05,2]
[420649322,1776424989670,250.39,8.228e-05,2]
[420649323,1776424989992,333.85,8.242e-05,2]
[420649324,1776424990339,417.32,8.256e-05,2]
[420649325,1776424990664,500.78,8.27e-05,2]
[420649326,1776424990991,584.24,8.283e-05,2]
[420649327,1776424998053,1600.0,7.768e-05,2]
[420649328,1776425004036,225.36,8.265e-05,2]
[420649329,1776425007387,150.0,0.00011233,120]
[420649332,1776425017119,175.28,8.249e-05,2]
[420649333,1776425047791,212.0,8.249e-05,3]
[420649334,1776425050454,940.4706,8.238e-05,2]
[420649335,1776425062629,3863.2806,8.238e-05,2]
[420649337,1776425107320,159.0,8.238e-05,3]
[420649338,1776425111879,202.0,8.238e-05,3]
[420649339,1776425123338,1537.5988,8.238e-05,2]
[420649340,1776425123363,4894.9407,8.238e-05,2]
[420649341,1776425155964,-293.40405999,8.304e-05,2]
[420649342,1776425159498,-106.59594001,8.304e-05,2]
[420649343,1776425159529,-193.40405999,8.304e-05,2]
[420649344,1776425169248,5105.0693,7.739e-05,2]
[420649345,1776425169270,4304.1007,7.739e-05,2]
[420649346,1776425173305,191.0,8.238e-05,3]
[420649348,1776425229828,182.0,8.238e-05,3]
[420649352,1776425277628,5322.9093,7.731e-05,2]
[420649353,1776425277650,4664.6107,7.731e-05,2]
[420649354,1776425288784,173.0,8.238e-05,3]
[420649355,1776425411856,159.0,8.238e-05,3]
[420649356,1776425411930,164.0,8.238e-05,3]
[420649358,1776425431965,-59.85594001,8.304e-05,2]
[420649359,1776425431974,-250.0,8.32e-05,2]
[420649360,1776425431984,-224.21062812,8.336e-05,2]
[420649361,1776425432179,-75.78937188,8.336e-05,2]
[420649362,1776425432190,-300.0,8.336e-05,2]
[420649363,1776425432200,-1200.0,8.336e-05,2]
[420649364,1776425432209,-844.16522056,8.337e-05,2]
[420649365,1776425432219,-183.16140459,8.337e-05,2]
[420649366,1776425432229,-150.0,8.337e-05,2]
[420649367,1776425432238,-300.0,8.337e-05,2]
[420649368,1776425432248,-105743.1466913,8.338e-05,2]
[420649369,1776425432258,-200.6265152,8.338e-05,2]
[420649370,1776425432267,-3003.1216666,8.338e-05,2]
[420649371,1776425432277,-1026.87548062,8.338e-05,2]
[420649372,1776425432286,-58038.1894,8.338e-05,2]
[420649373,1776425432295,-500.0,8.452e-05,2]
[420649374,1776425432304,-500.0,8.452e-05,2]
[420649375,1776425432314,-500.0,8.452e-05,2]
[420649376,1776425432323,-500.0,8.452e-05,2]
[420649377,1776425432333,-170.67182518,8.452e-05,2]
[420649378,1776425432343,-170.03,8.486e-05,2]
[420649380,1776425432353,-500.0,8.597e-05,2]
[420649382,1776425432363,-500.0,8.597e-05,2]
[420649384,1776425432373,-500.0,8.597e-05,2]
[420649386,1776425432383,-500.0,8.597e-05,2]
[420649388,1776425432393,-500.0,8.597e-05,2]
[420649390,1776425432403,-500.0,8.597e-05,2]
[420649392,1776425432412,-500.0,8.597e-05,2]
[420649394,1776425432422,-500.0,8.597e-05,2]
[420649395,1776425432431,-500.0,8.597e-05,2]
[420649396,1776425432441,-500.0,8.597e-05,2]
[420649397,1776425432450,-500.0,8.597e-05,2]
[420649399,1776425432459,-500.0,8.597e-05,2]
[420649400,1776425432468,-500.0,8.597e-05,2]
[420649401,1776425432478,-500.0,8.597e-05,2]
[420649402,1776425432488,-500.0,8.597e-05,2]
[420649403,1776425432497,-500.0,8.597e-05,2]
[420649404,1776425432507,-500.0,8.597e-05,2]
[420649405,1776425432517,-500.0,8.597e-05,2]
[420649406,1776425432526,-500.0,8.597e-05,2]
[420649407,1776425432537,-500.0,8.597e-05,2]
[420649408,1776425432546,-500.0,8.597e-05,2]
[420649409,1776425432555,-500.0,8.597e-05,2]
[420649410,1776425432565,-500.0,8.597e-05,2]
[420649411,1776425432575,-500.0,8.597e-05,2]
[420649412,1776425432585,-500.0,8.597e-05,2]
[420649413,1776425432595,-500.0,8.597e-05,2]
[420649414,1776425432604,-500.0,8.597e-05,2]
[420649415,1776425432616,-500.0,8.597e-05,2]
[420649416,1776425432627,-303.79298558,8.597e-05,2]
[420649417,1776425432637,-500.0,8.597e-05,2]
[420649418,1776425432646,-500.0,8.597e-05,2]
[420649419,1776425432656,-500.0,8.597e-05,2]
[420649420,1776425432666,-500.0,8.597e-05,2]
[420649421,1776425432675,-500.0,8.597e-05,2]
[420649422,1776425432685,-500.0,8.597e-05,2]
[420649423,1776425432695,-500.0,8.597e-05,2]
[420649424,1776425432705,-566.31502899,8.597e-05,2]
[420649425,1776425432716,-566.31502899,8.597e-05,2]
[420649426,1776425432725,-566.31502899,8.597e-05,2]
[420649427,1776425432735,-566.31502899,8.597e-05,2]
[420649428,1776425432744,-566.31502899,8.597e-05,2]
[420649429,1776425432755,-566.31502899,8.597e-05,2]
[420649430,1776425432764,-566.31502899,8.597e-05,2]
[420649431,1776425432775,-566.31502899,8.597e-05,2]
[420649432,1776425432785,-566.31502899,8.597e-05,2]
[420649433,1776425432794,-566.31502899,8.597e-05,2]
[420649434,1776425432804,-566.31502899,8.597e-05,2]
[420649435,1776425432814,-566.31502899,8.597e-05,2]
[420649436,1776425432824,-566.31502899,8.597e-05,2]
[420649437,1776425432834,-566.31502899,8.597e-05,2]
[420649438,1776425432844,-566.31502899,8.597e-05,2]
[420649439,1776425432854,-566.31502899,8.597e-05,2]
[420649440,1776425432865,-566.31502899,8.597e-05,2]
[420649441,1776425432875,-566.31502899,8.597e-05,2]
[420649442,1776425432884,-566.31502899,8.597e-05,2]
[420649443,1776425432894,-566.31502899,8.597e-05,2]
[420649444,1776425432904,-566.31502899,8.597e-05,2]
[420649445,1776425432913,-566.31502899,8.597e-05,2]
[420649446,1776425432923,-566.31502899,8.597e-05,2]
[420649447,1776425432933,-566.31502899,8.597e-05,2]
[420649448,1776425432943,-566.31502899,8.597e-05,2]
[420649449,1776425432953,-566.31502899,8.597e-05,2]
[420649450,1776425432962,-566.31502899,8.597e-05,2]
[420649451,1776425432972,-566.31502899,8.597e-05,2]
[420649452,1776425432982,-566.31502899,8.597e-05,2]
[420649453,1776425432992,-566.31502899,8.597e-05,2]
[420649454,1776425433002,-566.31502899,8.597e-05,2]
[420649455,1776425433012,-566.31502899,8.597e-05,2]
[420649456,1776425433022,-566.31502899,8.597e-05,2]
[420649457,1776425433032,-566.31502899,8.597e-05,2]
[420649458,1776425433043,-566.31502899,8.597e-05,2]
[420649459,1776425433053,-566.31502899,8.597e-05,2]
[420649460,1776425433062,-566.31502899,8.597e-05,2]
[420649461,1776425433072,-566.31502899,8.597e-05,2]
[420649462,1776425433081,-566.31502899,8.597e-05,2]
[420649463,1776425433091,-566.31502899,8.597e-05,2]
[420649464,1776425433101,-566.31502899,8.597e-05,2]
[420649465,1776425433111,-566.31502899,8.597e-05,2]
[420649466,1776425433122,-566.31502899,8.597e-05,2]
[420649467,1776425433132,-665.0492877,8.597e-05,2]
[420649468,1776425433142,-665.0492877,8.597e-05,2]
[420649469,1776425433152,-665.0492877,8.597e-05,2]
[420649470,1776425433162,-665.0492877,8.597e-05,2]
[420649471,1776425433172,-665.0492877,8.597e-05,2]
[420649472,1776425433182,-665.0492877,8.597e-05,2]
[420649473,1776425433191,-665.0492877,8.597e-05,2]
[420649474,1776425433200,-665.0492877,8.597e-05,2]
[420649475,1776425433209,-665.0492877,8.597e-05,2]
[420649476,1776425433218,-1245.03489331,8.597e-05,2]
[420649477,1776425433227,-151.0,8.597e-05,2]
[420649478,1776425433237,-151.0,8.597e-05,2]
[420649479,1776425433245,-151.0,8.597e-05,2]
[420649480,1776425433255,-200.0,8.597e-05,2]
[420649481,1776425433264,-342.253411,8.597e-05,2]
[420649482,1776425433274,-500.0,8.598e-05,2]
[420649483,1776425433282,-500.0,8.599e-05,2]
[420649484,1776425433291,-33071.2974,8.599e-05,2]
[420649485,1776425433301,-150.99,8.599e-05,2]
[420649486,1776425433310,-299.99,8.599e-05,2]
[420649487,1776425433319,-490.91,8.599e-05,2]
[420649488,1776425433329,-5867.09,8.6e-05,2]
[420649489,1776425433338,-5988.16,8.6e-05,2]
[420649490,1776425433348,-4494.32349249,8.6e-05,2]
[420649491,1776425433357,-1531.0,8.6e-05,2]
[420649492,1776425433368,-1584.56276668,8.6e-05,2]
[420649493,1776425433378,-166.79,8.601e-05,2]
[420649494,1776425433388,-578.20924308,8.667e-05,2]
[420649495,1776425433398,-151.0,8.667e-05,2]
[420649496,1776425433408,-174.61919141,8.667e-05,2]
[420649497,1776425433417,-235.75327198,8.667e-05,2]
[420649498,1776425433427,-621.78829552,8.667e-05,2]
[420649499,1776425433437,-500.0,8.673e-05,2]
[420649500,1776425433447,-502.95671559,8.673e-05,2]
[420649501,1776425433456,-500.0,8.673e-05,2]
[420649502,1776425433466,-500.0,8.673e-05,2]
[420649503,1776425433475,-500.0,8.673e-05,2]
[420649504,1776425433484,-171.2065889,8.673e-05,2]
[420649505,1776425433494,-500.0,8.673e-05,2]
[420649506,1776425433504,-284.65101063,8.692e-05,2]
[420649507,1776425433513,-646.65982734,8.695e-05,2]
[420649508,1776425433522,-200.0,8.695e-05,2]
[420649509,1776425433531,-1280.88388878,8.695e-05,2]
[420649510,1776425433540,-500.0,8.695e-05,2]
[420649511,1776425433550,-500.0,8.695e-05,2]
[420649512,1776425433559,-500.0,8.695e-05,2]
[420649513,1776425433568,-500.0,8.695e-05,2]
[420649514,1776425433578,-500.0,8.695e-05,2]
[420649515,1776425433587,-500.0,8.695e-05,2]
[420649516,1776425433596,-500.0,8.695e-05,2]
[420649517,1776425433607,-500.0,8.695e-05,2]
[420649518,1776425433616,-500.0,8.695e-05,2]
[420649519,1776425433625,-743.50770149,8.695e-05,2]
[420649520,1776425433634,-279.9045709,8.695e-05,2]
[420649521,1776425433643,-154.7246712,8.697e-05,2]
[420649522,1776425433653,-151.0,8.697e-05,2]
[420649523,1776425433662,-151.0,8.697e-05,2]
[420649524,1776425433671,-500.0,8.699e-05,2]
[420649525,1776425433680,-512.29838403,8.699e-05,2]
[420649526,1776425433690,-500.0,8.699e-05,2]
[420649527,1776425433699,-308.58695364,8.699e-05,2]
[420649528,1776425433708,-500.0,8.699e-05,2]
[420649529,1776425433718,-500.0,8.699e-05,2]
[420649530,1776425433727,-269.96007874,8.699e-05,2]
[420649531,1776425433736,-500.0,8.699e-05,2]
[420649532,1776425433746,-316997.6337337,8.7e-05,2]
[420649533,1776425433756,-400.0,8.7e-05,2]
[420649534,1776425433766,-253.26,8.7e-05,2]
[420649535,1776425433775,-382.0,8.702e-05,7]
[420649536,1776425433784,-1600.0,8.738e-05,2]
[420649537,1776425433794,-260.592825,8.841e-05,2]
[420649538,1776425433803,-500.0,8.873e-05,2]
[420649539,1776425433814,-490.91,8.873e-05,2]
[420649540,1776425433825,-157.89,8.904e-05,2]
[420649541,1776425433836,-2611.0,8.915e-05,5]
[420649542,1776425433847,-166.79,8.929e-05,2]
[420649543,1776425433857,-164.0,8.962e-05,3]
[420649544,1776425433868,-150.0,8.986e-05,2]
[420649545,1776425433877,-1300.0,9e-05,3]
[420649546,1776425433886,-150.0,9.049e-05,2]
[420649547,1776425433895,-150.0,9.049e-05,2]
[420649548,1776425433907,-6534.05,9.068e-05,2]
[420649549,1776425433916,-11777.29157493,9.07e-05,2]
[420649550,1776425433928,-1096.9126958,9.099e-05,3]
[420649551,1776425433938,-2082.0,9.1e-05,5]
[420649552,1776425433948,-1463.0,9.1e-05,5]
[420649553,1776425433960,-250.0,9.1e-05,2]
[420649554,1776425433969,-59845.00348748,9.1e-05,2]
[420649555,1776425435706,-32418.86605922,9.1e-05,2]
[420649556,1776425435718,-118063.59238061,9.1e-05,2]
[420649557,1776425435728,-15294.55484022,9.1e-05,2]
[420649558,1776425435739,-187813.72317149,9.1e-05,2]
[420649559,1776425435750,-530.782187,9.1e-05,2]
[420649560,1776425435760,-530.782187,9.1e-05,2]
[420649561,1776425435770,-530.782187,9.1e-05,2]
[420649562,1776425435780,-530.782187,9.1e-05,2]
[420649563,1776425435790,-151.0,9.1e-05,2]
[420649564,1776425435799,-230.276631,9.1e-05,2]
[420649565,1776425435808,-601.291159,9.1e-05,2]
[420649566,1776425435817,-601.291159,9.1e-05,2]
[420649567,1776425435827,-601.291159,9.1e-05,2]
[420649568,1776425435836,-601.291159,9.1e-05,2]
[420649569,1776425435845,-5000.0,9.134e-05,2]
[420649570,1776425435855,-3298.33088948,9.134e-05,2]
[420649571,1776425435864,-250.0,9.134e-05,2]
[420649572,1776425435874,-250.0,9.134e-05,2]
[420649573,1776425435883,-286.63094339,9.134e-05,2]
[420649574,1776425435893,-190.10483936,9.14e-05,2]
[420649575,1776425435903,-150.0,9.14e-05,2]
[420649576,1776425435913,-500.0,9.147e-05,2]
[420649577,1776425435923,-490.91,9.147e-05,2]
[420649578,1776425435933,-420.0,9.17e-05,2]
[420649579,1776425435946,-1680.0,9.17e-05,2]
[420649580,1776425435956,-255.0,9.171e-05,2]
[420649581,1776425435967,-269.19,9.176e-05,2]
[420649582,1776425435978,-181.08010149,9.215e-05,2]
[420649583,1776425435988,-1000.0,9.221e-05,2]
[420649584,1776425435998,-501.26652409,9.221e-05,2]
[420649585,1776425436008,-323.18330102,9.221e-05,2]
[420649586,1776425436017,-1002.17279001,9.221e-05,2]
[420649587,1776425436029,-1328.27659266,9.243e-05,2]
[420649588,1776425436039,-151.0,9.243e-05,2]
[420649589,1776425436048,-601.291159,9.243e-05,2]
[420649590,1776425436058,-601.291159,9.243e-05,2]
[420649591,1776425436067,-601.291159,9.243e-05,2]
[420649592,1776425436076,-601.291159,9.243e-05,2]
[420649593,1776425436086,-2000.0,9.247e-05,2]
[420649594,1776425436095,-170.03,9.257e-05,2]
[420649595,1776425436105,-166.79,9.257e-05,2]
[420649596,1776425436114,-150.281,9.276e-05,2]
[420649597,1776425436123,-1265.342,9.276e-05,2]
[420649598,1776425436132,-1219.532,9.276e-05,2]
[420649599,1776425436141,-298.69915986,9.276e-05,2]
[420649600,1776425436165,-266.38014877,9.276e-05,2]
[420649606,1776425438140,-363.38469137,9.276e-05,2]
[420649607,1776425438150,-1049.659,9.276e-05,2]
[420649608,1776425438160,-1348.0,9.276e-05,2]
[420649609,1776425438170,-530.782187,9.276e-05,2]
[420649610,1776425438179,-530.782187,9.276e-05,2]
[420649611,1776425438189,-530.782187,9.276e-05,2]
[420649612,1776425438198,-530.782187,9.276e-05,2]
[420649613,1776425438208,-172.42901639,9.304e-05,2]
[420649614,1776425438217,-1620.571,9.304e-05,2]
[420649615,1776425438226,-150.0,9.364e-05,2]
[420649616,1776425438235,-151.0,9.364e-05,2]
[420649617,1776425438245,-150.0,9.364e-05,2]
[420649618,1776425438254,-150.0,9.364e-05,2]
[420649619,1776425438263,-204.027,9.364e-05,2]
[420649620,1776425438278,-150.294,9.364e-05,2]
[420649621,1776425438287,-150.0,9.364e-05,2]
[420649622,1776425438298,-1077.26075635,9.414e-05,2]
[420649623,1776425438307,-500.0,9.421e-05,2]
[420649624,1776425438318,-490.91,9.421e-05,2]
[420649625,1776425438329,-165.6052,9.5e-05,2]
[420649626,1776425438339,-319.643968,9.57e-05,2]
[420649627,1776425438348,-160.0,9.576e-05,2]
[420649628,1776425438358,-151.0,9.589e-05,2]
[420649629,1776425438368,-151.0,9.589e-05,2]
[420649630,1776425438378,-157.89,9.589e-05,2]
[420649631,1776425438388,-164.0,9.687e-05,3]
[420649632,1776425438398,-474.19721144,9.695e-05,2]
[420649633,1776425438407,-490.93,9.695e-05,2]
[420649634,1776425438417,-1600.0,9.709e-05,2]
[420649635,1776425438427,-500.34379561,9.726e-05,2]
[420649636,1776425438437,-7293.83681339,9.755e-05,2]
[420649637,1776425438446,-5411.58022302,9.755e-05,2]
[420649638,1776425438456,-187.78006525,9.763e-05,2]
[420649639,1776425438466,-1004.23904526,9.768e-05,2]
[420649640,1776425438475,-1377.42282659,9.791e-05,2]
[420649641,1776425438485,-3622.0,9.8e-05,2]
[420649642,1776425438495,-1786.953934,9.873e-05,2]
[420649643,1776425438505,-2472.86427447,9.873e-05,2]
[420649644,1776425438515,-4522.90171,9.898e-05,2]
[420649645,1776425438524,-2600.0,9.9e-05,3]
[420649646,1776425438534,-529.70309084,9.924e-05,2]
[420649647,1776425438543,-5989.36138384,0.0001,3]
[420649648,1776425438556,-14010.65861616,0.0001,3]
[420649649,1776425438565,-255.28394793,0.0001,5]
[420649650,1776425438574,-152.42017985,0.0001,2]
[420649651,1776425438584,-1140.39,0.0001,2]
[420649652,1776425438593,-234.51857954,0.0001,2]
[420649653,1776425438603,-1352.93831,0.0001,2]
[420649654,1776425438612,-1352.93831,0.0001,2]
[420649655,1776425438623,-1352.93831,0.0001,2]
[420649656,1776425438632,-200.0,0.0001,2]
[420649657,1776425438642,-3900.0,0.0001,3]
[420649658,1776425438651,-1352.93832,0.0001002,2]
[420649659,1776425438661,-200.0,0.00010027,2]
[420649660,1776425438675,-200.0,0.00010027,2]
[420649661,1776425438685,-308.76,0.00010027,2]
[420649662,1776425438694,-15722.58886277,0.00010048,2]
[420649663,1776425438711,-181.33881622,0.00010048,2]
[420649664,1776425438720,-660.8424566,0.00010064,2]
[420649665,1776425438731,-435.09011755,0.00010074,2]
[420649666,1776425439214,-1620.0,0.00010074,2]
[420649759,1776425440858,-46.8012,0.00010074,2]
[420649760,1776425440899,-2643.73668625,0.00010074,2]
[420649761,1776425440909,-150.0,0.00010074,2]
[420649762,1776425440918,-43971.07445376,0.00010074,2]
[420649763,1776425440928,-1352.93832,0.00010074,2]
[420649764,1776425440937,-1352.93831,0.00010074,2]
[420649765,1776425440947,-156.3457197,0.00010074,2]
[420649766,1776425440957,-2351.0,0.00010087,2]
[420649767,1776425440966,-587.0,0.00010087,2]
[420649768,1776425440976,-433.0,0.00010088,2]
[420649769,1776425440985,-3737.856828,0.00010094,2]
[420649770,1776425440995,-1118.69316756,0.00010099,3]
[420649771,1776425441005,-1038.33,0.000101,2]
[420649772,1776425441014,-259.58,0.000101,2]
[420649773,1776425441024,-259.58,0.000101,2]
[420649774,1776425441033,-259.58,0.000101,2]
[420649775,1776425441043,-152.0,0.00010115,3]
[420649776,1776425441054,-5745.0,0.00010123,2]
[420649777,1776425441063,-16280.16466816,0.00010133,2]
[420649778,1776425441075,-7314.32058764,0.00010133,2]
[420649779,1776425441085,-200.0,0.00010137,3]
[420649780,1776425441094,-200.0,0.00010137,3]
[420649781,1776425441104,-151.0,0.0001014,2]
[420649782,1776425441114,-151.0,0.0001017,2]
[420649783,1776425441123,-151.0,0.0001017,2]
[420649785,1776425441133,-857.07119199,0.0001017,2]
[420649787,1776425441143,-1116.0,0.00010176,2]
[420649788,1776425441153,-1295.0887,0.000102,2]
[420649789,1776425441163,-250.0,0.00010237,2]
[420649790,1776425441172,-1768.0,0.00010267,2]
[420649791,1776425441181,-629.0,0.00010267,2]
[420649792,1776425441191,-420.0,0.00010267,2]
[420649793,1776425441201,-780.0,0.00010267,2]
[420649794,1776425441211,-908.0,0.00010267,2]
[420649795,1776425441220,-367.0,0.00010267,2]
[420649796,1776425441230,-1315.0,0.00010267,2]
[420649797,1776425441240,-2015.0,0.00010267,2]
[420649798,1776425441250,-2000.0,0.00010274,2]
[420649799,1776425441261,-157.89,0.00010274,2]
[420649800,1776425441282,-152.0,0.00010274,4]
[420649801,1776425441293,-14456.48315433,0.000103,2]
[420649802,1776425441306,-6473.50880541,0.000103,2]
[420649803,1776425441319,-6653.03943673,0.000103,2]
[420649804,1776425441340,-1425.82817633,0.000103,2]
[420649805,1776425441417,-375.1025,0.000103,2]
[420649806,1776425441429,-551.28806432,0.000103,2]
[420649807,1776425441441,-5617.99710257,0.000103,2]
[420649808,1776425441453,-3273.79873012,0.000103,2]
[420649809,1776425441465,-966.48262412,0.000103,2]
[420649838,1776425443218,-1579.0,8.328e-05,2]
[420649839,1776425443232,-810.70186814,8.328e-05,2]
[420649840,1776425443328,-1150.05140832,8.328e-05,2]
[420649841,1776425443341,-4437.84029287,8.328e-05,2]
[420649842,1776425443354,-928.77157746,8.328e-05,2]
[420649843,1776425443384,-541.39864331,8.328e-05,2]
[420649863,1776425448781,-3143.17563158,8.328e-05,2]
[420649864,1776425448792,-994.30618172,8.328e-05,2]
[420649865,1776425448804,-2022.61147718,8.328e-05,2]
[420649866,1776425448816,-749.76654996,8.328e-05,2]
[420649868,1776425503061,4839.3993,8.238e-05,2]
[420649869,1776425503085,10000.01,8.238e-05,2]
[420649870,1776425503110,10000.01,8.238e-05,2]
[420649871,1776425503135,10000.01,8.238e-05,2]
[420649872,1776425503158,10000.01,8.238e-05,2]
[420649873,1776425503187,10000.01,8.238e-05,2]
[420649874,1776425503211,10000.01,8.238e-05,2]
[420649875,1776425503238,10000.01,8.238e-05,2]
[420649876,1776425503264,10000.01,8.238e-05,2]
[420649877,1776425503289,10000.01,8.238e-05,2]
[420649878,1776425503318,600076.0267,8.238e-05,2]
[420649881,1776425527121,234.0,8.238e-05,3]
[420649882,1776425528371,3049.765551,7.945e-05,2]
[420649883,1776425532021,1053.57286162,8.238e-05,2]
[420649885,1776425537804,579.82091005,7.411e-05,2]
[420649886,1776425544620,150.0,8.22e-05,2]
[420649887,1776425586114,223.0,8.22e-05,3]
[420649888,1776425637670,500.0,8.228e-05,2]
[420649889,1776425647508,227.0,8.228e-05,3]
[420649890,1776425665144,8320.18908995,8.228e-05,2]
[420649891,1776425665169,10000.01,8.228e-05,2]
[420649892,1776425665194,10000.01,8.228e-05,2]
[420649893,1776425665219,10000.01,8.228e-05,2]
[420649894,1776425665244,10000.01,8.228e-05,2]
[420649895,1776425665271,10000.01,8.228e-05,2]
[420649896,1776425665303,10000.01,8.228e-05,2]
[420649897,1776425665333,1679.82091005,8.228e-05,2]
[420649898,1776425680361,150.0,8.22e-05,2]
[420649899,1776425706290,289.0,8.22e-05,3]
[420649900,1776425707029,158.0,8.22e-05,3]
[420649901,1776425708043,162.89,8.3e-05,2]
[420649902,1776425748548,150.0,8.22e-05,2]
[420649903,1776425762526,1000.0,8.3e-05,2]
[420649904,1776425766012,274.0,8.22e-05,3]
[420649905,1776425802139,454.7477,8.228e-05,2]
[420649906,1776425822728,5681.55138995,8.228e-05,2]
[420649907,1776425822753,10000.01,8.228e-05,2]
[420649908,1776425822778,10000.01,8.228e-05,2]
[420649909,1776425822803,10000.01,8.228e-05,2]
[420649910,1776425822833,10000.01,8.228e-05,2]
[420649911,1776425822858,10000.01,8.228e-05,2]
[420649912,1776425822883,10000.01,8.228e-05,2]
[420649913,1776425822908,10000.01,8.228e-05,2]
[420649914,1776425822933,10000.01,8.228e-05,2]
[420649915,1776425822958,10000.01,8.228e-05,2]
[420649916,1776425822983,54923.9733,8.228e-05,2]
[420649917,1776425823012,516882.07063309,8.228e-05,2]
[420649918,1776425831855,-150.0,8.22e-05,2]
[420649919,1776425831879,-1308.0,8.228e-05,2]
[420649920,1776425832837,-225.87068671,8.228e-05,2]
[420649921,1776425834395,-229.05836657,8.228e-05,2]
[420649922,1776425841362,-269.0,8.22e-05,3]
[420649923,1776425841391,-257.0,8.228e-05,2]
[420649924,1776425852117,-8187.2286694,8.228e-05,2]
[420649925,1776425852257,-10000.01,8.228e-05,2]
[420649926,1776425852415,-10000.01,8.228e-05,2]
[420649927,1776425853154,-300.0,8.228e-05,2]
[420649928,1776425853343,-10000.01,8.228e-05,2]
[420649929,1776425853937,-10000.01,8.228e-05,2]
[420649930,1776425853976,-10000.01,8.228e-05,2]
[420649931,1776425853990,-10000.01,8.228e-05,2]
[420649932,1776425854026,-10000.01,8.228e-05,2]
[420649933,1776425854039,-10000.01,8.228e-05,2]
[420649934,1776425856550,-300.0,8.228e-05,2]
[420649935,1776425865860,-10000.01,8.228e-05,2]
[420649936,1776425868478,-10000.01,8.228e-05,2]
[420649937,1776425868502,-10000.01,8.228e-05,2]
[420649938,1776425868520,-10000.01,8.228e-05,2]
[420649939,1776425868536,-10000.01,8.228e-05,2]
[420649940,1776425868663,-1733.68924572,8.228e-05,2]
[420649941,1776425868689,-6532.63150856,8.228e-05,2]
[420649942,1776425875550,466.3685,8.228e-05,2]
[420649943,1776425882096,249.690294,8.178e-05,2]
[420649944,1776425885910,925.0,8.178e-05,3]
[420649945,1776425890102,150.0,8.22e-05,2]
[420649948,1776425945308,879.0,8.22e-05,3]
[420649949,1776425958957,310.1849,8.227e-05,2]
[420649950,1776425984781,150.0,8.22e-05,2]
[420649951,1776425988957,8510.8251,8.228e-05,2]
[420649952,1776425988981,10000.01,8.228e-05,2]
[420649953,1776425989006,10000.01,8.228e-05,2]
[420649954,1776425989030,10000.01,8.228e-05,2]
[420649955,1776425989054,10000.01,8.228e-05,2]
[420649956,1776425989078,10000.01,8.228e-05,2]
[420649957,1776425989102,10000.01,8.228e-05,2]
[420649958,1776425989125,10000.01,8.228e-05,2]
[420649959,1776425989149,10000.01,8.228e-05,2]
[420649960,1776425989172,10000.01,8.228e-05,2]
[420649961,1776426001995,-8358.951206,8.228e-05,2]
[420649962,1776426002009,-10000.01,8.228e-05,2]
[420649963,1776426002026,-10000.01,8.228e-05,2]
[420649964,1776426002039,-10000.01,8.228e-05,2]
[420649965,1776426002052,-10000.01,8.228e-05,2]
[420649966,1776426002065,-10000.01,8.228e-05,2]
[420649967,1776426002118,-10000.01,8.228e-05,2]
[420649968,1776426002138,-3885.172794,8.228e-05,2]
[420649969,1776426008136,158.0,8.228e-05,3]
[420649970,1776426008420,3169.726581,7.945e-05,2]
[420649971,1776426013703,298.82397852,8.217e-05,2]
[420649972,1776426013842,203.0,8.228e-05,3]
[420649973,1776426028466,161.0,8.228e-05,3]
[420649974,1776426047294,200.0,8.2e-05,2]
[420649975,1776426049564,400.0,8.265e-05,2]
[420649976,1776426049705,226.75,8.265e-05,2]
[420649977,1776426050013,150.0,8.22e-05,2]
[420649978,1776426070122,1142.0,8.22e-05,3]